bitfinex-derivatives/quotes_ETHF0:USTF0_20250116
["timestamp","ask_amount","ask_price","bid_price","bid_amount"]
[1736993060004,2.35656702,3399.6,3399.2,0.4751]
[1736993060206,0.58832,3399.4,3399.2,0.4751]
[1736993060713,0.58832,3399.3,3399.2,0.4751]
[1736993060914,0.5883,3399.5,3399.2,0.4751]
[1736993061409,0.58832,3399.3,3399.2,0.4751]
[1736993061615,0.58834,3399.2,3399.0,3.2078]
[1736993061816,0.58839,3399.0,3398.6,3.667]
[1736993062203,0.4593,3398.9,3398.6,3.667]
[1736993062409,0.9226,3398.9,3398.6,3.667]
[1736993062810,1.511,3398.9,3398.6,0.4592]
[1736993064816,0.9226,3398.9,3398.6,0.4592]
[1736993065614,1.511,3398.9,3398.6,0.4592]
[1736993065819,0.9226,3398.9,3398.6,0.4592]
[1736993066518,0.9226,3398.9,3398.6,1.04764]
[1736993067114,0.4593,3398.9,3398.6,1.04764]
[1736993067417,3.2078,3399.6,3398.7,0.58843]
[1736993067418,0.58834,3399.3,3398.7,0.58843]
[1736993067618,0.4509,3399.5,3398.9,3.79617]
[1736993067619,0.58831,3399.4,3398.9,3.79617]
[1736993068217,0.443,3399.5,3398.9,3.2078]
[1736993068423,3.2078,3399.6,3399.3,0.58831]
[1736993068619,3.2078,3399.6,3399.0,0.9258]
[1736993068821,2.94479702,3399.9,3399.4,0.58829]
[1736993069020,2.35656702,3399.9,3399.5,0.4672]
[1736993069220,0.58824,3399.8,3399.5,0.4672]
[1736993069423,0.8939,3400.0,3399.5,0.4672]
[1736993069424,1.48211,3400.0,3399.5,1.05548]
[1736993069619,0.58823,3399.9,3399.5,0.4672]
[1736993070324,1.03121,3400.0,3399.5,1.05547]
[1736993071021,0.443,3400.0,3399.7,3.2078]
[1736993071220,3.2078,3400.5,3399.8,1.192]
[1736993071421,2.94468702,3400.5,3399.9,0.58821]
[1736993071631,0.4502,3400.4,3400.0,0.5882]
[1736993071819,0.4502,3400.4,3400.2,0.58816]
[1736993072022,2.35656702,3400.5,3400.1,0.58817]
[1736993072326,2.35656702,3400.5,3400.2,0.444]
[1736993072528,2.35656702,3400.5,3400.2,1.03216]
[1736993073725,1.4032,3400.8,3400.2,0.444]
[1736993073919,0.4502,3400.8,3400.4,0.58812]
[1736993074416,0.9283,3401.5,3400.7,2.35656702]
[1736993074620,0.4602,3401.5,3401.2,0.58799]
[1736993074819,1.03801,3401.7,3401.4,3.2078]
[1736993074820,0.4501,3401.7,3401.4,3.2078]
[1736993076823,3.2078,3402.2,3401.4,3.2078]
[1736993077130,3.2078,3402.2,3401.5,0.4733]
[1736993077535,3.2078,3402.2,3401.7,0.58789]
[1736993077826,3.2078,3402.2,3401.5,0.4733]
[1736993077827,3.2078,3402.6,3402.1,0.58784]
[1736993078131,3.2078,3402.6,3402.1,1.192]
[1736993078325,3.2078,3402.6,3402.2,0.58782]
[1736993078636,3.2078,3402.6,3402.1,1.77983]
[1736993079023,3.2078,3402.6,3402.0,40.8]
[1736993079323,3.2078,3402.6,3402.1,1.192]
[1736993079530,3.2078,3402.6,3401.9,0.4894]
[1736993079732,3.2078,3402.6,3402.2,1.191]
[1736993079733,3.79556,3402.6,3402.2,1.191]
[1736993080529,3.2078,3402.6,3402.2,1.191]
[1736993080727,3.79555,3402.6,3402.2,1.191]
[1736993081329,3.2078,3402.6,3402.2,1.191]
[1736993082333,3.6698,3403.0,3402.2,6.75536702]
[1736993082629,3.2078,3403.0,3402.6,0.58774]
[1736993083426,3.2078,3403.0,3402.5,2.35656702]
[1736993083631,3.2078,3403.0,3402.4,0.58777]
[1736993083832,0.58768,3403.1,3402.4,0.58777]
[1736993084236,3.6553,3403.5,3402.5,0.58776]
[1736993084538,0.58765,3403.2,3402.3,0.4577]
[1736993084739,0.58767,3403.1,3402.4,0.58778]
[1736993084935,0.58767,3403.1,3402.5,0.58776]
[1736993085135,0.58765,3403.2,3402.5,0.58776]
[1736993085333,0.58765,3403.2,3402.3,0.4577]
[1736993085334,0.58765,3403.2,3402.6,0.58775]
[1736993085739,3.6553,3403.5,3402.5,0.58776]
[1736993085937,0.58766,3403.2,3402.5,0.58776]
[1736993086232,3.6553,3403.5,3402.5,0.58776]
[1736993086438,0.58766,3403.2,3402.5,0.58776]
[1736993086637,0.58767,3403.1,3402.5,0.58776]
[1736993087443,0.58767,3403.1,3402.3,0.4577]
[1736993087738,4.2429,3403.5,3402.9,0.5877]
[1736993087930,3.6553,3403.5,3402.9,1.7787]
[1736993088131,0.58761,3403.4,3402.9,1.191]
[1736993088637,0.58761,3403.4,3402.8,0.58771]
[1736993088934,0.58761,3403.4,3402.9,1.191]
[1736993089440,3.6553,3403.5,3402.9,1.191]
[1736993089637,3.6553,3403.5,3402.6,3.2078]
[1736993089840,0.58766,3403.2,3402.7,1.191]
[1736993090143,0.58767,3403.1,3402.7,1.191]
[1736993090334,0.58765,3403.2,3402.7,1.77873]
[1736993090734,0.58766,3403.2,3402.7,1.191]
[1736993090935,0.58766,3403.2,3402.7,1.77873]
[1736993091642,2.35656702,3403.3,3402.8,0.58771]
[1736993091838,2.94420702,3403.3,3402.8,0.58771]
[1736993092736,2.35656702,3403.3,3402.7,3.2078]
[1736993092939,0.58765,3403.2,3402.9,1.191]
[1736993093232,2.35656702,3403.3,3402.9,1.191]
[1736993093436,2.94420702,3403.3,3402.9,1.191]
[1736993093841,2.35656702,3403.3,3402.9,1.191]
[1736993094043,0.58766,3403.2,3402.9,1.191]
[1736993094836,2.35656702,3403.3,3402.9,1.191]
[1736993095042,0.58766,3403.2,3402.9,1.191]
[1736993095240,0.4484,3403.4,3402.9,1.191]
[1736993095537,0.58766,3403.2,3402.9,1.191]
[1736993096732,0.58766,3403.2,3402.8,1.191]
[1736993098746,1.03602,3403.4,3402.9,1.77869]
[1736993098943,2.35656702,3403.3,3403.0,0.4549]
[1736993099140,0.58765,3403.2,3403.0,0.4549]
[1736993099343,2.35656702,3403.3,3403.0,0.4549]
[1736993099643,0.4484,3403.4,3403.0,0.4549]
[1736993099845,1.03602,3403.4,3403.0,0.4549]
[1736993100054,1.03602,3403.4,3403.0,1.04258]
[1736993100346,1.03602,3403.4,3403.0,0.4549]
[1736993100347,0.4484,3403.4,3403.0,0.4549]
[1736993100542,1.03602,3403.4,3403.0,0.4549]
[1736993101549,0.58763,3403.3,3403.0,0.4549]
[1736993101747,0.58768,3403.0,3402.9,1.19]
[1736993102047,0.58767,3403.1,3402.9,1.19]
[1736993102240,0.4484,3403.4,3402.9,1.7777]
[1736993102442,0.4484,3403.4,3402.9,1.19]
[1736993102643,0.58765,3403.2,3402.9,1.19]
[1736993102844,2.35656702,3403.3,3402.9,1.19]
[1736993103044,0.4484,3403.4,3402.9,1.19]
[1736993103448,1.03602,3403.4,3403.0,0.58768]
[1736993104047,0.4484,3403.4,3402.9,1.19]
[1736993104247,0.4475,3403.5,3403.2,0.58765]
[1736993104852,0.4536,3403.8,3403.1,3.2078]
[1736993105051,1.06702,3404.0,3403.5,3.79539]
[1736993105545,0.4795,3404.0,3403.5,3.2078]
[1736993105742,2.35656702,3403.9,3403.5,3.2078]
[1736993106141,0.58757,3403.7,3403.5,3.2078]
[1736993106340,0.58762,3403.4,3403.2,0.4559]
[1736993106945,2.35656702,3403.9,3403.2,0.4559]
[1736993107150,0.58759,3403.6,3403.2,0.4559]
[1736993107356,2.35656702,3403.3,3402.9,3.2078]
[1736993107648,0.5877,3402.9,3402.8,2.2035]
[1736993107950,0.58777,3402.5,3402.4,4.3978]
[1736993108156,0.58779,3402.4,3402.3,1.19]
[1736993108354,0.4593,3402.4,3402.0,13.7908]
[1736993108547,0.58782,3402.2,3402.1,1.19]
[1736993108854,0.4593,3402.4,3402.1,1.19]
[1736993109152,0.4593,3402.4,3402.2,0.58782]
[1736993109353,0.4593,3402.4,3402.1,1.77782]
[1736993109743,3.2078,3402.8,3402.1,1.19]
[1736993110052,2.80576702,3403.0,3402.5,3.2078]
[1736993110053,0.4492,3403.0,3402.5,3.2078]
[1736993110251,0.58767,3403.1,3402.6,1.06764]
[1736993110448,0.58769,3403.0,3402.6,0.9284]
[1736993110654,0.4593,3403.2,3402.6,0.9284]
[1736993111159,0.5877,3402.9,3402.6,0.9284]
[1736993111457,0.5877,3402.9,3402.6,0.4799]
[1736993111851,0.58773,3402.7,3402.6,0.4799]
[1736993112050,2.35656702,3403.0,3402.6,0.4799]
[1736993112253,0.58771,3402.9,3402.6,0.4799]
[1736993112458,0.58772,3402.8,3402.6,0.4799]
[1736993114554,0.58782,3402.2,3402.1,3.2078]
[1736993115458,2.81766702,3402.7,3401.9,0.4626]
[1736993115459,0.5878,3402.3,3401.9,0.4626]
[1736993115654,0.58785,3402.1,3401.9,1.6526]
[1736993116555,0.445,3402.2,3402.0,3.2078]
[1736993116857,1.04884,3402.7,3402.1,0.58783]
[1736993116858,0.58776,3402.6,3402.1,0.58783]
[1736993117058,0.4611,3402.7,3402.0,3.2078]
[1736993117257,0.58778,3402.5,3402.0,3.79565]
[1736993117651,0.4611,3402.7,3402.0,3.2078]
[1736993117652,0.58779,3402.4,3402.0,3.2078]
[1736993117851,0.4611,3402.7,3402.0,3.2078]
[1736993118053,0.58784,3402.1,3402.0,3.2078]
[1736993118555,0.58785,3402.0,3401.9,0.4626]
[1736993118852,0.58785,3402.1,3401.9,0.4626]
[1736993119058,0.58783,3402.2,3401.9,0.4626]
[1736993119259,0.58785,3402.1,3401.9,0.4626]
[1736993119455,0.4533,3402.1,3401.9,0.4626]
[1736993122760,1.04115,3402.1,3401.9,0.4626]
[1736993123462,0.4533,3402.1,3401.9,0.4626]
[1736993123858,1.04114,3402.1,3401.9,0.4626]
[1736993124258,0.4533,3402.1,3401.9,0.4626]
[1736993124456,3.2078,3402.4,3401.9,0.4626]
[1736993124655,0.58783,3402.2,3401.9,0.4626]
[1736993125162,3.2078,3402.4,3401.9,0.4626]
[1736993125358,0.58782,3402.3,3401.9,0.4626]
[1736993125554,3.2078,3402.4,3401.9,3.6704]
[1736993125760,0.58785,3402.1,3401.9,3.6704]
[1736993125960,0.58782,3402.2,3401.9,3.6704]
[1736993126561,0.58782,3402.2,3401.9,0.4626]
[1736993126765,0.58784,3402.1,3401.9,0.4626]
[1736993126965,0.5878,3402.3,3401.9,0.4626]
[1736993127165,5.56436702,3402.4,3401.9,0.4626]
[1736993127367,0.5878,3402.3,3401.9,0.4626]
[1736993127566,0.58782,3402.2,3401.9,0.4626]
[1736993129771,0.58781,3402.3,3401.9,0.4626]
[1736993130371,0.4607,3402.6,3402.2,3.2078]
[1736993130564,0.58769,3403.0,3402.5,0.58776]
[1736993130767,3.6853,3403.1,3402.6,0.8964]
[1736993130965,3.2078,3403.5,3403.0,0.58766]
[1736993131175,3.2078,3403.5,3403.1,0.58765]
[1736993131364,3.2078,3403.5,3403.2,0.4462]
[1736993131564,3.2078,3403.5,3403.2,1.03384]
[1736993131866,0.4775,3403.6,3403.3,1.19]
[1736993131867,1.06508,3403.6,3403.3,1.19]
[1736993132069,0.58758,3403.6,3403.3,1.6702]
[1736993132469,2.80896702,3403.9,3403.3,1.6702]
[1736993132470,0.4524,3403.9,3403.3,1.6702]
[1736993132670,0.58758,3403.6,3403.3,1.6702]
[1736993133672,2.80896702,3403.9,3403.3,1.6702]
[1736993133868,0.58754,3403.8,3403.3,1.6702]
[1736993134172,0.58756,3403.7,3403.3,1.6702]
[1736993134374,2.80896702,3403.9,3403.3,1.6702]
[1736993134563,0.58759,3403.6,3403.3,1.6702]
[1736993134969,0.58754,3403.8,3403.3,1.6702]
[1736993135176,0.58754,3403.8,3403.3,2.25783]
[1736993135676,2.80896702,3403.9,3403.3,1.6702]
[1736993136073,0.58758,3403.6,3403.3,1.19]
[1736993136276,0.58756,3403.8,3403.3,1.77763]
[1736993136981,0.4524,3403.9,3403.3,1.19]
[1736993137474,0.58755,3403.8,3403.3,1.77762]
[1736993137680,0.58756,3403.7,3403.3,1.19]
[1736993137987,0.58756,3403.8,3403.3,1.19]
[1736993138285,0.58756,3403.8,3403.3,1.77763]
[1736993138680,0.4524,3403.9,3403.3,1.19]
[1736993138882,0.58755,3403.8,3403.3,1.77762]
[1736993139185,0.58756,3403.8,3403.3,1.77762]
[1736993139775,0.58757,3403.7,3403.3,1.19]
[1736993140483,0.4524,3403.9,3403.3,1.19]
[1736993140785,0.58761,3403.4,3403.3,1.19]
[1736993141380,0.58761,3403.4,3403.2,0.4462]
[1736993142680,0.58763,3403.3,3403.2,0.4462]
[1736993142982,0.58762,3403.4,3403.2,0.4462]
[1736993144084,0.58761,3403.4,3403.2,0.4462]
[1736993144286,0.5876,3403.5,3403.2,0.4462]
[1736993144884,0.58762,3403.4,3403.2,0.4462]
[1736993145279,0.5876,3403.5,3403.2,0.4462]
[1736993146184,0.58761,3403.5,3403.2,0.4462]
[1736993146390,2.80896702,3403.9,3403.2,0.4462]
[1736993146689,0.5876,3403.5,3403.2,0.4462]
[1736993146887,2.80896702,3403.9,3403.2,1.03384]
[1736993147190,2.80896702,3403.9,3403.2,0.4462]
[1736993147392,0.58759,3403.6,3403.2,0.4462]
[1736993148087,0.5876,3403.5,3403.2,0.4462]
[1736993148293,2.80896702,3403.9,3403.2,0.4462]
[1736993148497,2.80896702,3403.9,3403.1,4.3978]
[1736993148498,2.35656702,3403.6,3403.1,4.3978]
[1736993148793,0.58762,3403.4,3403.1,4.3978]
[1736993148995,2.80896702,3403.9,3403.1,4.3978]
[1736993149193,0.5876,3403.5,3403.2,0.4621]
[1736993149584,0.58758,3403.6,3403.2,0.4621]
[1736993149789,0.5876,3403.5,3403.3,0.4462]
[1736993150786,0.58765,3403.2,3403.1,3.2078]
[1736993151187,3.2078,3403.6,3403.1,3.2078]
[1736993151489,1.03993,3403.9,3403.5,0.58759]
[1736993151787,1.03993,3403.9,3403.6,0.9083]
[1736993151996,0.4524,3403.9,3403.6,41.7083]
[1736993152590,1.03993,3403.9,3403.6,41.7083]
[1736993152797,1.03993,3403.9,3403.6,0.9083]
[1736993152999,0.58756,3403.8,3403.6,0.9083]
[1736993153297,0.4524,3403.9,3403.6,0.9083]
[1736993153497,0.58756,3403.7,3403.6,0.4621]
[1736993153689,0.58756,3403.8,3403.6,0.4621]
[1736993155498,0.4524,3403.9,3403.6,0.4621]
[1736993155796,0.58754,3403.8,3403.6,0.4621]
[1736993157700,0.58756,3403.8,3403.6,0.4621]
[1736993157900,0.4524,3403.9,3403.6,0.4621]
[1736993158199,1.03993,3403.9,3403.6,0.4621]
[1736993158393,0.58754,3403.8,3403.6,0.4621]
[1736993158598,1.03993,3403.9,3403.6,0.4621]
[1736993159395,0.4524,3403.9,3403.6,0.4621]
[1736993159602,0.58754,3403.8,3403.6,0.4621]
[1736993159802,0.4524,3403.9,3403.6,0.4621]
[1736993159999,0.58756,3403.7,3403.6,0.4621]
[1736993160201,0.4524,3403.9,3403.6,0.4621]
[1736993160393,1.03994,3403.9,3403.6,0.4621]
[1736993160701,0.58755,3403.8,3403.6,0.4621]
[1736993160898,0.58756,3403.7,3403.6,0.4621]
[1736993162002,0.4524,3403.9,3403.6,0.4621]
[1736993162402,0.58755,3403.8,3403.6,0.4621]
[1736993163303,0.4524,3403.9,3403.6,0.4621]
[1736993163304,0.58756,3403.7,3403.6,0.4621]
[1736993164009,0.58758,3403.6,3403.4,1.189]
[1736993164306,0.5876,3403.5,3403.4,1.189]
[1736993165204,0.4425,3403.6,3403.1,4.8476]
[1736993165509,0.58762,3403.4,3403.1,4.8476]
[1736993168006,3.2078,3403.7,3403.1,7.20416702]
[1736993168209,0.58742,3404.5,3404.0,0.5875]
[1736993168504,0.58742,3404.5,3403.4,2.35656702]
[1736993168505,3.2078,3404.6,3404.1,5.3063]
[1736993168700,3.2078,3404.6,3404.2,41.989]
[1736993169003,3.2078,3404.6,3404.5,0.58742]
[1736993170195,0.9146,3405.3,3404.5,0.58742]
[1736993170196,0.58733,3405.1,3404.5,0.58742]
[1736993170401,3.2078,3405.2,3404.5,3.2078]
[1736993170797,0.58734,3405.0,3404.5,3.79522]
[1736993171207,3.2078,3405.2,3404.5,3.2078]
[1736993171603,0.58735,3405.0,3404.5,3.2078]
[1736993171908,0.58733,3405.1,3404.5,3.79521]
[1736993172106,0.58733,3405.1,3404.6,0.5874]
[1736993172606,3.2078,3405.2,3404.5,3.2078]
[1736993172607,0.58735,3405.0,3404.7,0.4646]
[1736993172801,0.58732,3405.1,3404.7,0.4646]
[1736993173408,0.58734,3405.0,3404.7,0.4646]
[1736993173604,3.2078,3405.2,3404.7,0.4646]
[1736993173803,0.58733,3405.1,3404.7,0.4646]
[1736993175210,3.2078,3405.2,3404.7,0.4646]
[1736993175409,3.2078,3405.2,3404.5,3.2078]
[1736993175410,0.58736,3404.9,3404.5,3.2078]
[1736993175607,2.35656702,3404.9,3404.3,0.4733]
[1736993175810,0.58745,3404.4,3404.1,3.2078]
[1736993176005,0.4692,3404.3,3404.1,3.2078]
[1736993176404,3.2078,3404.8,3404.1,3.2078]
[1736993176609,0.5874,3404.7,3404.2,0.58747]
[1736993178114,0.58743,3404.5,3404.1,3.2078]
[1736993179310,0.58741,3404.6,3404.1,3.2078]
[1736993179512,2.35656702,3404.9,3404.1,3.2078]
[1736993180007,0.58742,3404.6,3404.1,3.79529]
[1736993180207,2.35656702,3404.9,3404.1,3.2078]
[1736993180407,0.58743,3404.5,3404.1,3.2078]
[1736993180817,2.35656702,3404.9,3404.1,3.2078]
[1736993180818,0.58741,3404.6,3404.1,3.79528]
[1736993181820,2.35656702,3404.9,3404.1,3.2078]
[1736993182012,0.58742,3404.6,3404.1,3.79528]
[1736993182708,0.9374,3405.0,3404.2,2.35656702]
[1736993183112,0.58737,3404.8,3404.4,0.58744]
[1736993183717,0.9374,3405.0,3404.2,2.82186702]
[1736993184013,2.35656702,3404.6,3404.1,3.2078]
[1736993184217,2.35656702,3404.3,3403.5,0.4615]
[1736993184421,0.5876,3403.5,3403.4,5.79377856]
[1736993184916,0.4888,3403.6,3403.4,1.189]
[1736993185520,0.5876,3403.5,3403.0,3.89483702]
[1736993185710,0.5876,3403.5,3403.3,1.189]
[1736993186112,0.4601,3403.5,3403.3,1.189]
[1736993186421,0.58761,3403.4,3403.3,1.189]
[1736993187009,0.4601,3403.5,3403.2,1.189]
[1736993187211,0.4601,3403.5,3403.0,0.4615]
[1736993187518,0.58768,3403.0,3402.9,3.2078]
[1736993187715,0.58764,3403.3,3402.9,3.2078]
[1736993187916,3.2078,3403.7,3403.2,0.58764]
[1736993188120,3.79536,3403.7,3403.2,0.58764]
[1736993188424,0.477,3403.9,3403.3,1.189]
[1736993188610,0.58758,3403.6,3403.3,1.189]
[1736993189213,0.58754,3403.8,3403.3,1.189]
[1736993189418,0.477,3403.9,3403.3,1.189]
[1736993189818,0.58761,3403.4,3403.3,1.189]
[1736993190124,0.58761,3403.4,3403.0,0.9223]
[1736993190321,3.2078,3403.6,3402.9,3.2078]
[1736993190522,0.4642,3403.5,3402.9,4.3968]
[1736993190722,0.58767,3403.1,3402.9,4.3968]
[1736993191415,0.58765,3403.2,3402.9,4.3968]
[1736993192014,0.9253,3403.5,3402.9,4.3968]
[1736993192412,0.58762,3403.4,3402.9,4.3968]
[1736993192616,0.58761,3403.4,3402.9,4.3968]
[1736993192818,1.0487,3403.5,3403.0,2.94424702]
[1736993193017,3.2078,3403.6,3403.0,2.35656702]
[1736993193223,0.58762,3403.4,3403.0,2.35656702]
[1736993193727,0.5876,3403.5,3403.0,2.94424702]
[1736993194137,3.79538,3403.6,3403.1,41.38766]
[1736993194434,3.2078,3403.6,3403.2,0.58763]
[1736993194628,3.2078,3403.6,3403.3,0.4593]
[1736993194830,3.2078,3403.6,3403.3,0.9446]
[1736993195024,0.477,3403.9,3403.3,6.50896702]
[1736993195228,0.477,3403.9,3403.6,2.35656702]
[1736993195433,0.477,3403.9,3403.7,1.189]
[1736993195632,3.7953,3404.1,3403.7,1.189]
[1736993195935,3.2078,3404.1,3403.7,1.189]
[1736993196138,0.58754,3403.8,3403.7,1.189]
[1736993198235,0.4588,3403.9,3403.7,1.189]
[1736993199833,0.4588,3403.9,3403.3,4.8821]
[1736993200037,0.4588,3403.9,3403.5,0.58759]
[1736993200240,3.2078,3404.1,3403.8,0.58754]
[1736993200439,3.2078,3404.1,3403.9,0.9436]
[1736993201143,3.2078,3404.1,3404.0,0.58751]
[1736993202038,3.2078,3404.1,3403.9,3.30016702]
[1736993202238,3.2078,3404.1,3403.9,1.53112]
[1736993202642,3.2078,3404.1,3403.9,0.9436]
[1736993202939,3.2078,3404.1,3404.0,1.77651]
[1736993203333,3.2078,3404.1,3404.0,1.189]
[1736993204733,3.2078,3404.1,3404.0,1.77651]
[1736993205137,0.4822,3404.4,3404.1,0.58748]
[1736993205433,1.06222,3404.6,3404.1,0.58748]
[1736993205635,0.58743,3404.5,3404.1,0.58748]
[1736993205940,0.58743,3404.5,3404.0,1.7765]
[1736993207235,0.4748,3404.6,3404.0,1.189]
[1736993207434,0.58748,3404.2,3404.0,1.189]
[1736993207636,0.4748,3404.6,3404.0,1.189]
[1736993207840,0.58747,3404.3,3404.0,1.189]
[1736993208244,0.58748,3404.2,3404.0,1.189]
[1736993208438,0.4748,3404.6,3404.0,1.189]
[1736993208639,0.58746,3404.3,3404.0,1.189]
[1736993209537,0.58746,3404.3,3403.9,0.455]
[1736993209744,0.58746,3404.3,3404.0,1.189]
[1736993210542,0.4748,3404.6,3404.0,1.189]
[1736993210844,0.58748,3404.2,3404.0,1.189]
[1736993211039,0.4748,3404.6,3404.0,1.189]
[1736993211346,0.58746,3404.3,3404.0,1.189]
[1736993212547,0.58748,3404.2,3404.0,1.189]
[1736993213041,0.4748,3404.6,3404.0,1.189]
[1736993213236,0.58749,3404.1,3404.0,1.189]
[1736993213743,0.58751,3404.0,3403.9,0.455]
[1736993213943,1.06491,3404.0,3403.9,0.455]
[1736993215342,3.2078,3404.3,3403.9,0.455]
[1736993215537,3.79526,3404.3,3403.9,0.455]
[1736993215739,0.58748,3404.2,3403.9,0.455]
[1736993216042,3.2078,3404.3,3403.9,0.455]
[1736993216838,0.58748,3404.2,3403.9,0.455]
[1736993217235,0.58751,3404.1,3403.9,0.455]
[1736993217442,0.58751,3404.0,3403.9,0.455]
[1736993217844,0.58748,3404.2,3403.9,0.455]
[1736993218044,3.2078,3404.3,3403.9,0.455]
[1736993218246,0.58747,3404.2,3403.9,0.455]
[1736993218447,0.5875,3404.1,3403.9,0.455]
[1736993219049,0.58748,3404.2,3403.9,3.6628]
[1736993219253,0.58751,3404.1,3403.9,3.6628]
[1736993219747,0.58751,3404.0,3403.9,0.455]
[1736993219946,0.58748,3404.2,3403.9,0.455]
[1736993220446,0.58751,3404.1,3403.9,0.455]
[1736993220842,0.4774,3404.5,3403.9,0.455]
[1736993221040,0.58749,3404.2,3403.9,0.455]
[1736993221241,0.58744,3404.4,3404.0,3.2078]
[1736993221443,0.4774,3404.5,3403.9,0.455]
[1736993221650,0.58754,3403.8,3403.7,1.189]
[1736993222944,0.58754,3403.8,3403.5,0.4699]
[1736993222945,5.56436702,3403.8,3403.5,0.4699]
[1736993223247,0.443,3403.7,3403.1,3.2078]
[1736993223451,0.58763,3403.3,3403.1,3.2078]
[1736993224248,0.4733,3403.6,3403.1,3.2078]
[1736993224249,0.58765,3403.2,3403.1,3.2078]
[1736993225450,0.58768,3403.1,3402.9,2.1196]
[1736993225850,3.2078,3403.4,3402.9,2.1196]
[1736993225851,0.58765,3403.2,3402.9,2.1196]
[1736993226248,0.58767,3403.1,3402.9,2.1196]
[1736993226552,0.58767,3403.1,3402.9,1.6672]
[1736993227655,0.58765,3403.2,3402.9,1.6672]
[1736993227945,3.2078,3403.4,3402.9,1.6672]
[1736993227946,0.58767,3403.1,3402.9,1.6672]
[1736993228151,3.2078,3403.4,3402.9,1.6672]
[1736993228547,0.4644,3403.3,3402.6,3.6492]
[1736993228742,0.5877,3402.9,3402.6,2.1133]
[1736993229547,0.58773,3402.8,3402.6,2.1133]
[1736993229854,0.4644,3403.3,3402.6,2.1133]
[1736993229855,0.58765,3403.2,3402.6,2.1133]
[1736993230151,0.58771,3402.9,3402.6,2.1133]
[1736993230353,0.58768,3403.0,3402.6,2.1133]
[1736993230549,1.05461,3402.9,3402.6,1.6719]
[1736993230854,0.58773,3402.8,3402.6,1.6719]
[1736993231049,1.05461,3402.9,3402.6,1.6719]
[1736993231250,0.58773,3402.8,3402.6,1.6719]
[1736993231451,1.05461,3402.9,3402.6,1.6719]
[1736993231856,0.58772,3402.8,3402.6,0.4839]
[1736993232056,1.05461,3402.9,3402.6,0.4839]
[1736993232651,1.0546,3402.9,3402.6,0.4839]
[1736993232855,0.4669,3402.9,3402.6,0.4839]
[1736993236556,2.35656702,3403.5,3402.6,0.4839]
[1736993236557,0.58766,3403.2,3402.8,3.2078]
[1736993236756,0.58766,3403.2,3402.8,3.6885]
[1736993236963,0.58766,3403.2,3402.9,40.8]
[1736993237154,0.58766,3403.2,3402.8,3.6885]
[1736993237860,0.58766,3403.2,3402.8,0.4807]
[1736993238055,0.58768,3403.1,3402.8,0.4807]
[1736993239158,0.4712,3403.2,3402.6,0.4839]
[1736993239360,0.58769,3403.0,3402.6,0.4839]
[1736993239554,0.4712,3403.2,3402.6,1.07164]
[1736993239555,0.58767,3403.1,3402.6,1.07164]
[1736993240064,0.58769,3403.0,3402.6,1.07164]
[1736993240557,0.4725,3403.3,3402.7,2.35656702]
[1736993240861,1.06013,3403.3,3402.8,1.0398]
[1736993241062,1.06013,3403.3,3402.9,0.4424]
[1736993241261,1.06013,3403.3,3402.9,1.0301]
[1736993241461,1.06013,3403.3,3402.9,0.4424]
[1736993241654,0.58771,3402.9,3402.6,0.4839]
[1736993244762,2.81846702,3403.2,3402.6,0.4839]
[1736993245055,0.58771,3402.9,3402.6,0.4839]
[1736993245656,2.81846702,3403.2,3402.6,0.4839]
[1736993245862,0.4619,3403.2,3402.6,1.07165]
[1736993246059,0.4619,3403.2,3402.6,0.4839]
[1736993246459,0.58775,3402.6,3402.5,3.2078]
[1736993246661,2.35656702,3402.6,3402.1,1.189]
[1736993246962,0.58781,3402.3,3402.1,1.189]
[1736993247362,1.3901,3402.5,3402.1,1.189]
[1736993247563,0.58779,3402.4,3402.1,1.189]
[1736993248262,0.58775,3402.7,3402.1,1.189]
[1736993248569,3.2078,3402.8,3402.1,1.189]
[1736993248867,0.58775,3402.7,3402.3,0.5878]
[1736993249263,3.2078,3402.8,3402.4,0.4767]
[1736993249264,0.58777,3402.5,3402.4,0.4767]
[1736993249965,0.58781,3402.3,3402.1,1.189]
[1736993250165,0.58781,3402.3,3402.1,1.6403]
[1736993250366,0.58782,3402.2,3402.1,0.4513]
[1736993250663,0.58782,3402.2,3401.9,1.188]
[1736993250664,0.58785,3402.1,3401.9,1.188]
[1736993250867,1.06543,3402.2,3401.9,1.6393]
[1736993251069,0.4776,3402.2,3401.9,1.6393]
[1736993251269,0.4776,3402.2,3401.9,0.4513]
[1736993251270,0.58785,3402.0,3401.9,0.4513]
[1736993251464,0.58791,3401.7,3401.3,1.94957]
[1736993251662,0.58791,3401.7,3401.4,1.188]
[1736993251867,0.5879,3401.8,3401.4,1.188]
[1736993252769,3.6816,3401.9,3401.3,1.3616]
[1736993253069,0.58789,3401.8,3401.3,0.4513]
[1736993253273,3.6816,3401.9,3401.3,0.4513]
[1736993253466,0.58795,3401.5,3401.3,0.4513]
[1736993253666,0.58793,3401.6,3401.3,0.4513]
[1736993255072,3.6816,3401.9,3401.3,0.4513]
[1736993255273,0.4776,3402.2,3401.5,2.35656702]
[1736993255573,3.2078,3402.3,3401.8,2.35656702]
[1736993255772,3.2078,3402.3,3402.2,0.58782]